bitfinex/quotes_SOLUSD_20241105
["timestamp","ask_amount","ask_price","bid_price","bid_amount"]
[1730817346973,36.02278897,166.6,166.54,36.02278897]
[1730817347359,4.2019,166.59,166.54,36.02278897]
[1730817347866,36.02278897,166.61,166.55,36.02278897]
[1730817348072,4.2011,166.62,166.57,36.02278897]
[1730817348447,4.2011,166.62,166.58,36.02278897]
[1730817348747,4.2008,166.64,166.59,36.02278897]
[1730817348950,36.02278897,166.62,166.56,36.02278897]
[1730817349167,0.12549,166.61,166.56,36.02278897]
[1730817349390,36.14827897,166.59,166.54,36.02278897]
[1730817349568,0.12549,166.58,166.52,10.5092]
[1730817349773,0.12549,166.58,166.49,4.2042]
[1730817350078,0.37647,166.59,166.49,14.7153]
[1730817350452,0.12549,166.56,166.52,22.17709169]
[1730817350653,0.12549,166.57,166.52,22.17709169]
[1730817350959,4.2016,166.6,166.55,22.17709169]
[1730817351178,24.039243,166.66,166.59,22.17709169]
[1730817351377,38.27549169,166.69,166.63,22.17709169]
[1730817352165,4.1996,166.68,166.63,22.17709169]
[1730817352370,4.1994,166.69,166.65,22.17709169]
[1730817352578,26.37649169,166.69,166.63,22.17709169]
[1730817352778,22.17709169,166.67,166.61,22.17709169]
[1730817352984,0.12549,166.67,166.61,22.17709169]
[1730817353186,22.17709169,166.68,166.57,21.1214]
[1730817353481,46.37649169,166.69,166.57,21.1214]
[1730817353779,46.37649169,166.69,166.52,14.7122]
[1730817353780,0.37647,166.62,166.52,14.7122]
[1730817353969,22.55356169,166.62,166.56,22.17709169]
[1730817355080,22.55356169,166.62,166.52,14.7122]
[1730817355081,0.12549,166.58,166.53,22.17709169]
[1730817355262,0.12549,166.58,166.55,22.17709169]
[1730817355580,4.2024,166.57,166.55,22.17709169]
[1730817356166,0.12549,166.6,166.55,22.17709169]
[1730817356167,4.32729,166.6,166.55,22.17709169]
[1730817357080,4.32729,166.6,166.56,22.17709169]
[1730817357285,0.12549,166.58,166.53,22.17709169]
[1730817357772,0.12549,166.58,166.54,22.17709169]
[1730817357973,22.42807169,166.59,166.53,22.17709169]
[1730817358490,22.42807169,166.59,166.51,10.6828]
[1730817358491,0.12549,166.56,166.51,22.17709169]
[1730817358985,0.25098,166.57,166.52,22.17709169]
[1730817359194,4.2026,166.56,166.53,22.17709169]
[1730817359399,4.2026,166.56,166.52,22.17709169]
[1730817359598,0.12549,166.55,166.52,22.17709169]
[1730817359801,4.2026,166.56,166.53,22.17709169]
[1730817360382,4.2026,166.56,166.52,22.17709169]
[1730817360689,4.2026,166.56,166.54,22.17709169]
[1730817360998,4.2026,166.56,166.52,22.17709169]
[1730817361295,0.37647,166.53,166.48,22.17709169]
[1730817362002,22.55356169,166.53,166.47,22.17709169]
[1730817362296,22.55356169,166.51,166.45,22.17709169]
[1730817362496,22.55356169,166.51,166.43,0.3087181]
[1730817362497,0.37647,166.51,166.46,22.17709169]
[1730817362702,0.25098,166.46,166.43,0.3087181]
[1730817362872,44.153354,166.44,166.43,0.3087181]
[1730817363286,66.33044569,166.44,166.43,0.3087181]
[1730817363503,0.37647,166.44,166.43,0.3087181]
[1730817363879,0.25098,166.44,166.43,0.3087181]
[1730817364599,4.45668,166.44,166.43,0.3087181]
[1730817364973,4.2054,166.46,166.43,0.3087181]
[1730817365382,22.42807169,166.45,166.43,0.3087181]
[1730817365592,22.55356169,166.44,166.43,0.3087181]
[1730817365998,46.33044569,166.44,166.43,0.3087181]
[1730817366302,70.53614569,166.44,166.43,0.3087181]
[1730817366882,46.75926169,166.44,166.43,0.3087181]
[1730817367286,70.53614569,166.44,166.43,0.3087181]
[1730817367988,46.75926169,166.44,166.43,0.3087181]
[1730817368286,4.58217,166.44,166.43,0.3087181]
[1730817368477,26.75926169,166.44,166.43,0.3087181]
[1730817368684,4.58217,166.44,166.43,0.3087181]
[1730817368883,26.63377169,166.44,166.43,0.3087181]
[1730817369185,4.45668,166.44,166.43,0.3087181]
[1730817369412,4.2057,166.44,166.43,0.3087181]
[1730817369900,4.33119,166.44,166.43,0.3087181]
[1730817370087,46.50828169,166.44,166.43,0.3087181]
[1730817370287,70.28516569,166.44,166.43,0.3087181]
[1730817370515,70.53614569,166.44,166.43,0.3087181]
[1730817371010,70.63614569,166.44,166.43,0.3087181]
[1730817371174,70.53614569,166.44,166.43,0.3087181]
[1730817371999,70.63614569,166.44,166.43,0.3087181]
[1730817372297,70.53614569,166.44,166.43,0.3087181]
[1730817372596,70.63614569,166.44,166.43,0.3087181]
[1730817372798,70.53614569,166.44,166.43,0.3087181]
[1730817372998,46.38279169,166.44,166.43,0.3087181]
[1730817373200,4.2054,166.45,166.43,0.3087181]
[1730817373406,26.38249169,166.45,166.43,0.3087181]
[1730817374195,22.30258169,166.44,166.43,0.3087181]
[1730817374413,46.50828169,166.44,166.34,0.3087181]
[1730817374616,22.30258169,166.35,166.34,0.3087181]
[1730817374899,22.55356169,166.35,166.34,0.3087181]
[1730817375280,0.25098,166.35,166.34,0.3087181]
[1730817375717,0.37647,166.35,166.34,0.3087181]
[1730817375895,0.12549,166.35,166.34,0.3087181]
[1730817376201,0.12549,166.36,166.34,0.3087181]
[1730817376399,4.33339,166.35,166.34,0.3087181]
[1730817376611,4.58437,166.35,166.34,0.3087181]
[1730817377299,46.76146169,166.35,166.34,0.3087181]
[1730817378011,4.2079,166.35,166.34,0.3087181]
[1730817378220,26.63597169,166.35,166.34,0.3087181]
[1730817378395,46.63597169,166.35,166.34,0.3087181]
[1730817378715,26.51048169,166.35,166.34,0.3087181]
[1730817378916,4.33339,166.35,166.34,0.3087181]
[1730817379216,46.76146169,166.35,166.34,0.3087181]
[1730817380400,70.63834569,166.35,166.34,0.3087181]
[1730817381099,140.63834569,166.35,166.34,1.81e-05]
[1730817381307,0.1,166.31,166.26,0.3087181]
[1730817381511,42.55356169,166.27,166.26,0.3087181]
[1730817381904,66.33044569,166.27,166.26,0.3087181]
[1730817382117,66.43044569,166.27,166.26,1.81e-05]
[1730817382426,0.47647,166.21,166.18,0.3087181]
[1730817382631,23.776884,166.18,166.05,6.1973]
[1730817382918,22.42807169,166.1,166.05,6.1973]
[1730817383236,0.12549,166.02,165.91,0.4798586]
[1730817383405,0.1,166.07,165.91,0.4798586]
[1730817383606,23.776884,166.09,165.95,22.17709169]
[1730817383607,0.25098,166.08,165.95,22.17709169]
[1730817383928,0.25098,166.08,165.98,22.17709169]
[1730817383929,22.17709169,166.05,165.98,22.17709169]
[1730817384132,20.1,166.12,166.0,22.17709169]
[1730817384298,0.37647,166.09,166.0,22.17709169]
[1730817384501,0.2,166.16,166.05,22.17709169]
[1730817384502,22.17709169,166.12,166.05,22.17709169]
[1730817384702,4.2122,166.18,166.04,0.1]
[1730817384906,4.2122,166.18,166.06,22.17709169]
[1730817385105,4.2122,166.18,166.06,0.1]
[1730817385331,4.2122,166.18,166.1,36.22152915]
[1730817385520,36.22152915,166.17,166.11,36.22152915]
[1730817385711,36.22152915,166.21,166.14,36.22152915]
[1730817385917,36.22152915,166.21,166.15,36.22152915]
[1730817386305,36.22152915,166.23,166.16,36.22152915]
[1730817386504,4.2107,166.24,166.16,36.22152915]
[1730817386505,36.22152915,166.22,166.16,36.22152915]
[1730817386735,36.22152915,166.23,166.16,36.22152915]
[1730817386922,4.2103,166.26,166.11,0.1]
[1730817387241,4.2103,166.26,166.13,0.1]
[1730817387411,4.2097,166.29,166.16,0.1]
[1730817387616,36.22152915,166.25,166.19,36.22152915]
[1730817387835,36.22152915,166.25,166.16,0.1]
[1730817387836,36.22152915,166.24,166.18,36.22152915]
[1730817388132,36.22152915,166.29,166.23,36.22152915]
[1730817388305,36.22152915,166.28,166.22,36.22152915]
[1730817388506,0.12549,166.28,166.18,10.5302]
[1730817389333,0.12549,166.28,166.18,14.7424]
[1730817389502,4.2096,166.29,166.18,14.7424]
[1730817389708,36.22152915,166.28,166.22,36.22152915]
[1730817389907,36.22152915,166.27,166.21,36.22152915]
[1730817390108,4.2096,166.29,166.18,14.7424]
[1730817390109,36.22152915,166.26,166.2,36.22152915]
[1730817390329,36.22152915,166.27,166.2,36.22152915]
[1730817390529,36.22152915,166.29,166.23,36.22152915]
[1730817391033,36.22152915,166.27,166.21,36.22152915]
[1730817391235,36.22152915,166.22,166.11,0.1]
[1730817391442,36.22152915,166.21,166.14,10.5679]
[1730817391732,36.22152915,166.23,166.16,36.22152915]
[1730817392034,36.22152915,166.23,166.17,36.22152915]
[1730817392242,36.22152915,166.22,166.16,36.22152915]
[1730817392536,0.25098,166.25,166.16,36.22152915]
[1730817392537,40.43272915,166.23,166.16,36.22152915]
[1730817393323,40.43272915,166.23,166.17,36.22152915]
[1730817394306,90.360953,168.02,166.22,36.22152915]
[1730817394307,40.43102915,166.29,166.22,36.22152915]
[1730817394523,40.43062915,166.31,166.25,36.22152915]
[1730817394725,36.22152915,166.33,166.27,36.22152915]
[1730817394925,0.438735,166.37,166.25,0.1]
[1730817395129,4.646235,166.37,166.25,0.2]
[1730817395327,4.646235,166.37,166.32,36.22152915]
[1730817395531,0.438735,166.37,166.32,36.22152915]
[1730817395742,0.438735,166.37,166.33,36.22152915]
[1730817395914,0.438735,166.37,166.35,36.22152915]
[1730817396114,0.438735,166.37,166.34,36.22152915]
[1730817396315,4.646235,166.37,166.33,36.22152915]
[1730817396642,0.438735,166.37,166.34,36.22152915]
[1730817397220,4.646235,166.37,166.33,36.22152915]
[1730817397719,4.646235,166.37,166.3,14.7322]
[1730817397720,4.646235,166.37,166.34,36.22152915]
[1730817397915,4.646235,166.37,166.36,36.22152915]
[1730817397916,0.438735,166.37,166.36,36.22152915]
[1730817398316,0.438735,166.37,166.34,36.22152915]
[1730817399323,0.438735,166.37,166.35,36.22152915]
[1730817399735,0.438735,166.37,166.36,36.22152915]
[1730817400038,0.438735,166.37,166.35,36.22152915]
[1730817400210,4.646335,166.37,166.34,36.22152915]
[1730817400736,0.438735,166.37,166.36,36.22152915]
[1730817401235,0.4798586,166.5,166.38,0.1]
[1730817401438,36.70138775,166.5,166.45,36.22152915]
[1730817401616,36.22152915,166.49,166.44,36.22152915]
[1730817401958,36.70138775,166.5,166.45,36.22152915]
[1730817402239,4.2045,166.49,166.44,36.22152915]
[1730817402640,40.42602915,166.49,166.43,36.22152915]
[1730817402815,40.42602915,166.49,166.44,36.22152915]
[1730817403319,0.12549,166.45,166.4,36.22152915]
[1730817403517,36.34701915,166.45,166.4,36.22152915]
[1730817403717,4.62983124,166.47,166.43,36.22152915]
[1730817403928,20.0,166.39,166.21,10.5282]
[1730817404130,0.12549,166.32,166.27,36.22152915]
[1730817404417,40.55571915,166.32,166.26,36.22152915]
[1730817404622,4.33419,166.32,166.27,36.22152915]
[1730817404824,4.2087,166.32,166.27,36.22152915]
[1730817405145,4.2087,166.32,166.28,36.22152915]
[1730817405517,36.22152915,166.3,166.24,36.22152915]
[1730817405937,36.22152915,166.31,166.25,36.22152915]
[1730817406118,36.22152915,166.34,166.28,36.22152915]
[1730817406319,36.22152915,166.33,166.26,36.22152915]
[1730817406539,36.22152915,166.32,166.26,36.22152915]
[1730817407347,40.43032915,166.32,166.26,36.22152915]
[1730817407838,36.22152915,166.33,166.27,36.22152915]
[1730817408040,36.22152915,166.31,166.25,50.95812915]
[1730817409038,36.22152915,166.32,166.26,36.22152915]
[1730817409239,36.22152915,166.31,166.25,50.95812915]
[1730817409464,36.22152915,166.3,166.23,40.43232915]
[1730817409743,36.22152915,166.31,166.25,36.22152915]
[1730817410515,36.22152915,166.29,166.23,36.22152915]
[1730817410722,36.22152915,166.26,166.2,36.22152915]
[1730817410940,36.34701915,166.32,166.19,46.75162915]
[1730817410941,40.43212915,166.25,166.19,46.75162915]
[1730817411120,36.22152915,166.24,166.18,36.22152915]
[1730817412051,4.2106,166.25,166.19,36.22152915]
[1730817412221,40.43212915,166.25,166.19,36.22152915]
[1730817412544,36.22152915,166.27,166.21,36.22152915]
[1730817412839,36.22152915,166.24,166.19,36.22152915]
[1730817413025,36.22152915,166.26,166.2,36.22152915]
[1730817413230,36.22152915,166.26,166.21,36.22152915]
[1730817413433,4.2095,166.29,166.22,36.22152915]
[1730817413434,36.22152915,166.28,166.22,36.22152915]
[1730817413853,36.22152915,166.27,166.21,36.22152915]
[1730817414150,36.22152915,166.31,166.25,36.22152915]
[1730817414339,36.22152915,166.3,166.24,36.22152915]
[1730817414734,36.22152915,166.29,166.23,36.22152915]
[1730817415141,36.22152915,166.3,166.24,36.22152915]
[1730817415334,36.22152915,166.28,166.23,10.5275]
[1730817415537,36.22152915,166.29,166.23,46.74902915]
[1730817416531,36.22152915,166.35,166.28,36.22152915]
[1730817416727,36.22152915,166.36,166.3,36.22152915]
[1730817417150,36.22152915,166.35,166.29,36.22152915]
[1730817417354,36.22152915,166.34,166.28,36.22152915]
[1730817417543,36.22152915,166.33,166.27,36.22152915]
[1730817417852,36.22152915,166.34,166.28,36.22152915]
[1730817418055,4.2085,166.33,166.28,36.22152915]
[1730817418235,36.22152915,166.32,166.26,46.74702915]
[1730817418436,4.2085,166.33,166.28,36.22152915]
[1730817418735,24.2072,166.38,166.3,36.22152915]
[1730817418930,0.12549,166.37,166.26,14.7357]
[1730817419639,34.7252,166.38,166.26,14.7357]
[1730817419839,4.2072,166.38,166.26,35.787]
[1730817420030,4.2072,166.38,166.26,35.887]
[1730817420236,4.2072,166.38,166.24,16.731]
[1730817420237,36.22152915,166.36,166.3,36.22152915]
[1730817420851,36.22152915,166.41,166.35,36.22152915]
[1730817421048,36.22152915,166.42,166.37,36.22152915]
[1730817421254,36.22152915,166.41,166.35,36.22152915]
[1730817421551,4.206,166.43,166.36,36.22152915]
[1730817421860,36.22152915,166.39,166.33,36.22152915]
[1730817422154,36.22152915,166.38,166.32,36.22152915]
[1730817422354,36.22152915,166.4,166.34,36.22152915]
[1730817422557,36.22152915,166.38,166.29,35.7807]
[1730817422860,36.22152915,166.39,166.33,36.22152915]
[1730817423053,0.12549,166.45,166.32,36.22152915]
[1730817423054,36.22152915,166.38,166.32,36.22152915]
[1730817423255,36.22152915,166.38,166.33,36.22152915]
[1730817423443,36.22152915,166.4,166.34,36.22152915]
[1730817423631,36.22152915,166.39,166.33,50.95102915]
[1730817423951,4.2057,166.44,166.33,50.95102915]
[1730817423952,36.22152915,166.42,166.36,36.22152915]
[1730817424153,4.2057,166.44,166.38,36.22152915]
[1730817424154,40.42722915,166.44,166.38,36.22152915]
[1730817424357,36.22152915,166.47,166.41,36.22152915]
[1730817424565,40.42662915,166.47,166.41,36.22152915]
[1730817424860,36.70138775,166.5,166.44,36.22152915]
[1730817425067,4.2044,166.49,166.45,36.22152915]
[1730817425355,4.2044,166.49,166.39,6.5827]
[1730817425356,4.2044,166.49,166.44,36.22152915]
[1730817425562,0.4798586,166.5,166.48,36.22152915]
[1730817425769,0.4798586,166.5,166.44,10.6142]
[1730817426064,0.4798586,166.5,166.49,36.22152915]
[1730817426461,0.4798586,166.5,166.49,62.44482915]
[1730817426758,40.90258775,166.62,166.56,36.22152915]
[1730817427141,36.22152915,166.59,166.53,36.22152915]
[1730817427341,36.22152915,166.6,166.55,36.22152915]
[1730817427849,40.90258775,166.62,166.56,36.22152915]
[1730817428259,0.4798586,166.62,166.58,36.22152915]
[1730817428444,0.4798586,166.62,166.59,36.22152915]
[1730817428643,0.4798586,166.62,166.56,36.22152915]
[1730817428644,40.90268775,166.62,166.56,36.22152915]
[1730817428846,36.22152915,166.6,166.55,36.22152915]
[1730817429159,40.90268775,166.62,166.56,36.22152915]
[1730817429355,36.22152915,166.6,166.54,36.22152915]
[1730817429560,40.42342915,166.6,166.54,36.22152915]
[1730817429743,4.2019,166.6,166.56,36.22152915]
[1730817429937,4.2019,166.6,166.55,36.22152915]
[1730817430149,4.2019,166.6,166.5,10.5105]
[1730817430150,36.22152915,166.56,166.51,36.22152915]
[1730817430350,36.22152915,166.56,166.5,36.22152915]
[1730817430657,36.22152915,166.54,166.49,6.2233]
[1730817430868,36.22152915,166.51,166.46,36.22152915]
[1730817431058,0.12549,166.59,166.45,16.2668]
[1730817431059,36.22152915,166.54,166.48,36.22152915]
[1730817431263,36.22152915,166.57,166.52,36.22152915]
[1730817431573,4.2019,166.6,166.55,36.22152915]
[1730817431751,4.2019,166.6,166.47,14.7173]
[1730817431752,4.6811586,166.62,166.51,0.1]
[1730817432268,0.12549,166.61,166.48,20.0]
[1730817432451,4.6811586,166.62,166.49,23.876884]
[1730817432635,15.1840586,166.62,166.48,20.0]
[1730817432839,36.22152915,166.59,166.53,36.22152915]
[1730817433149,36.22152915,166.58,166.52,36.22152915]
[1730817433461,36.22152915,166.57,166.52,36.22152915]
[1730817433664,36.22152915,166.59,166.53,36.22152915]
[1730817433845,36.22152915,166.57,166.52,36.22152915]
[1730817434450,36.22152915,166.53,166.46,36.22152915]
[1730817434766,36.22152915,166.52,166.46,36.22152915]
[1730817434951,36.22152915,166.54,166.48,36.22152915]
[1730817435444,0.37647,166.59,166.51,36.22152915]
[1730817435445,36.22152915,166.56,166.51,36.22152915]
[1730817435653,40.42442915,166.56,166.51,36.22152915]
[1730817435851,36.22152915,166.55,166.49,36.22152915]
[1730817436066,36.22152915,166.54,166.48,36.22152915]
[1730817436361,40.42442915,166.56,166.5,36.22152915]
[1730817436560,4.2029,166.56,166.51,36.22152915]
[1730817436942,4.2024,166.58,166.53,36.22152915]
[1730817437170,4.2024,166.58,166.48,36.22152915]
[1730817437171,40.90258775,166.62,166.56,36.22152915]
[1730817437371,4.6810586,166.62,166.57,36.22152915]
[1730817437742,40.90258775,166.62,166.56,36.22152915]
[1730817437964,40.90258775,166.62,166.57,36.22152915]
[1730817438166,40.90258775,166.62,166.56,36.22152915]
[1730817438347,36.22152915,166.6,166.54,36.22152915]
[1730817438539,36.22152915,166.58,166.52,36.22152915]
[1730817438959,36.22152915,166.58,166.53,36.22152915]
[1730817439673,4.2024,166.57,166.52,36.22152915]
[1730817439969,36.22152915,166.56,166.5,36.22152915]
[1730817440764,36.22152915,166.55,166.5,36.22152915]
[1730817440972,36.22152915,166.54,166.48,36.22152915]
[1730817441144,36.22152915,166.53,166.47,36.22152915]
[1730817441344,36.22152915,166.52,166.47,36.22152915]
[1730817441559,4.2039,166.51,166.47,36.22152915]
[1730817441768,4.2039,166.51,166.48,36.22152915]
[1730817441990,36.22152915,166.55,166.49,36.22152915]
[1730817442851,40.42442915,166.55,166.49,36.22152915]
[1730817443049,36.22152915,166.54,166.48,36.22152915]
[1730817443243,4.2029,166.55,166.46,4.205]
[1730817443244,4.2029,166.55,166.51,36.22152915]
[1730817443454,40.42312915,166.6,166.54,36.22152915]
[1730817443770,4.2016,166.6,166.55,36.22152915]
[1730817444067,36.22152915,166.59,166.54,36.22152915]
[1730817444673,36.22152915,166.58,166.52,36.22152915]
[1730817444962,36.22152915,166.58,166.48,36.22152915]
[1730817444963,40.54891915,166.59,166.53,36.22152915]
[1730817445165,36.22152915,166.58,166.53,36.22152915]
[1730817445346,4.32739,166.59,166.53,36.22152915]
[1730817445347,40.54891915,166.59,166.53,36.22152915]
[1730817445553,40.54891915,166.59,166.45,16.2668]
[1730817445554,36.22152915,166.55,166.5,36.22152915]
[1730817445754,36.22152915,166.56,166.5,36.22152915]
[1730817446068,36.22152915,166.57,166.51,36.22152915]
[1730817446271,36.22152915,166.56,166.5,36.22152915]
[1730817446576,36.22152915,166.57,166.51,36.22152915]
[1730817446748,36.22152915,166.56,166.5,36.22152915]
[1730817447657,4.2029,166.55,166.5,36.22152915]
[1730817447865,36.22152915,166.54,166.48,36.22152915]
[1730817448380,36.22152915,166.54,166.49,36.22152915]
[1730817448549,36.22152915,166.54,166.45,16.2668]
[1730817448550,36.22152915,166.51,166.45,52.48832915]
[1730817448750,36.22152915,166.5,166.45,36.22152915]
[1730817448950,36.22152915,166.51,166.45,36.22152915]
[1730817449557,36.22152915,166.5,166.44,36.22152915]
[1730817449871,36.22152915,166.53,166.47,36.22152915]
[1730817450083,36.22152915,166.56,166.5,36.22152915]
[1730817450377,4.2031,166.55,166.5,36.22152915]
[1730817450547,4.2031,166.55,166.52,36.22152915]
[1730817450757,4.2026,166.57,166.52,36.22152915]
[1730817451371,40.42412915,166.57,166.51,36.22152915]
[1730817451571,36.22152915,166.53,166.47,36.22152915]
[1730817451758,4.2036,166.52,166.48,36.22152915]
[1730817452471,36.22152915,166.51,166.45,36.22152915]
[1730817452658,36.22152915,166.5,166.45,36.22152915]
[1730817452863,4.2036,166.52,166.46,36.22152915]
[1730817452864,50.93432915,166.52,166.46,36.22152915]
[1730817453294,50.93432915,166.52,166.45,36.22152915]
[1730817453295,36.22152915,166.51,166.45,36.22152915]
[1730817453466,36.22152915,166.51,166.43,6.3224]
[1730817453467,50.93432915,166.52,166.47,36.22152915]
[1730817453670,50.93432915,166.52,166.4,51.83222915]
[1730817453671,40.42622915,166.48,166.41,36.22152915]
[1730817453880,40.42622915,166.48,166.42,36.22152915]
[1730817454189,4.2047,166.48,166.43,36.22152915]
[1730817454364,36.22152915,166.47,166.41,36.22152915]
[1730817454787,4.2047,166.48,166.44,36.22152915]
[1730817454960,36.22152915,166.52,166.46,36.22152915]
[1730817455173,40.42462915,166.54,166.48,36.22152915]
[1730817455485,4.2031,166.54,166.5,36.22152915]
[1730817455691,36.22152915,166.56,166.51,36.22152915]
[1730817455897,4.2021,166.58,166.53,36.22152915]
[1730817455898,4.2024,166.57,166.53,36.22152915]
[1730817456363,4.2019,166.59,166.56,36.22152915]
[1730817456566,4.2019,166.59,166.57,36.22152915]
[1730817456766,0.4610748,166.62,166.58,36.22152915]
[1730817457059,0.4610748,166.62,166.57,36.22152915]
[1730817457260,0.4610748,166.62,166.51,15.8001]
[1730817457261,0.4610748,166.62,166.59,36.22152915]
[1730817457490,0.4610748,166.62,166.6,36.22152915]
[1730817457688,0.4610748,166.62,166.56,36.22152915]
[1730817457689,0.4610748,166.62,166.61,36.22152915]
[1730817457870,0.4610748,166.62,166.59,36.22152915]
[1730817458071,0.4610748,166.62,166.6,36.22152915]
[1730817458483,0.4610748,166.62,166.59,36.22152915]
[1730817458663,4.6623748,166.62,166.58,36.22152915]
[1730817458867,4.6623748,166.62,166.57,36.22152915]
[1730817459067,4.6623748,166.62,166.58,36.22152915]
[1730817459283,4.6623748,166.62,166.56,10.5062]
[1730817459284,36.22152915,166.6,166.55,36.22152915]
[1730817459486,36.22152915,166.56,166.51,36.22152915]
[1730817459673,36.22152915,166.58,166.52,36.22152915]
[1730817459989,36.22152915,166.55,166.5,42.47892915]
[1730817460181,0.12549,166.58,166.51,36.22152915]
[1730817460380,36.22152915,166.56,166.51,36.22152915]
[1730817460686,36.22152915,166.57,166.51,36.22152915]
[1730817461188,36.22152915,166.58,166.52,36.22152915]
[1730817461394,36.22152915,166.59,166.54,36.22152915]
[1730817461596,40.42312915,166.6,166.54,36.22152915]
[1730817461888,36.22152915,166.58,166.51,4.2038]
[1730817462072,36.22152915,166.54,166.48,36.22152915]
[1730817462587,36.22152915,166.53,166.47,36.22152915]
[1730817462785,36.22152915,166.52,166.46,36.22152915]
[1730817463088,36.22152915,166.5,166.44,36.22152915]
[1730817463672,0.12549,166.47,166.32,10.5217]
[1730817463980,36.22152915,166.4,166.34,36.22152915]
[1730817464184,36.22152915,166.41,166.34,36.22152915]
[1730817464482,36.22152915,166.41,166.35,36.22152915]
[1730817464889,40.42822915,166.4,166.33,36.22152915]
[1730817465471,4.2067,166.4,166.35,36.22152915]
[1730817465868,4.2067,166.4,166.34,36.22152915]
[1730817466070,40.42822915,166.4,166.34,36.22152915]
[1730817466593,36.22152915,166.39,166.32,36.22152915]
[1730817466772,4.2067,166.4,166.34,36.22152915]
[1730817467075,40.42822915,166.4,166.34,36.22152915]
[1730817467276,36.22152915,166.38,166.32,36.22152915]
[1730817467682,4.2072,166.38,166.33,36.22152915]
[1730817469700,36.22152915,166.4,166.33,36.22152915]
[1730817470075,36.22152915,166.4,166.34,36.22152915]
[1730817470273,36.22152915,166.4,166.33,36.22152915]
[1730817470474,36.22152915,166.41,166.35,36.22152915]
[1730817470671,36.22152915,166.4,166.34,36.22152915]
[1730817470875,14.7199,166.44,166.32,36.22152915]
[1730817470876,36.22152915,166.37,166.32,36.22152915]
[1730817471080,36.22152915,166.38,166.32,36.22152915]
[1730817471294,36.22152915,166.39,166.33,36.22152915]
[1730817471592,36.22152915,166.37,166.32,36.22152915]
[1730817471894,36.22152915,166.34,166.29,36.22152915]
[1730817472269,36.22152915,166.31,166.28,6.6532]
[1730817472477,36.22152915,166.31,166.26,16.0265]
[1730817473386,36.22152915,166.29,166.23,42.40012915]
[1730817473699,40.43112915,166.29,166.23,46.61112915]
[1730817474079,40.43052915,166.31,166.25,36.22152915]
[1730817474281,36.22152915,166.28,166.23,42.40012915]
[1730817474497,36.22152915,166.3,166.24,36.22152915]
[1730817474677,40.43052915,166.31,166.25,36.22152915]
[1730817474875,36.22152915,166.3,166.24,36.22152915]
[1730817475187,36.22152915,166.29,166.23,42.40012915]
[1730817475396,36.22152915,166.27,166.23,6.1786]
[1730817475572,36.22152915,166.26,166.2,51.33082915]
[1730817475895,4.2105,166.25,166.2,36.22152915]
[1730817476104,40.43202915,166.25,166.19,36.22152915]
[1730817476799,4.2105,166.25,166.2,36.22152915]
[1730817477094,4.2105,166.25,166.21,36.22152915]
[1730817477299,4.2105,166.25,166.2,36.22152915]
[1730817477610,36.22152915,166.23,166.18,0.4593912]
[1730817478079,36.22152915,166.25,166.19,36.22152915]
[1730817478399,36.22152915,166.26,166.2,36.22152915]
[1730817478775,40.43152915,166.27,166.21,36.22152915]
[1730817479592,36.22152915,166.28,166.22,36.22152915]
[1730817479784,36.22152915,166.28,166.22,40.43262915]
[1730817479983,36.22152915,166.29,166.24,36.22152915]
[1730817480194,4.2094,166.3,166.25,36.22152915]
[1730817480502,40.42942915,166.35,166.29,36.22152915]
[1730817480687,36.22152915,166.33,166.25,6.0154]
[1730817481079,36.22152915,166.33,166.27,36.22152915]
[1730817481477,36.22152915,166.31,166.25,52.76312915]
[1730817481682,36.22152915,166.3,166.25,52.76312915]
[1730817481908,36.22152915,166.31,166.25,52.76312915]
[1730817482208,36.22152915,166.28,166.22,36.22152915]
[1730817482389,36.22152915,166.26,166.2,42.30192915]
[1730817482712,36.22152915,166.25,166.2,42.30192915]
[1730817482877,36.22152915,166.25,166.19,40.43352915]
[1730817483281,36.22152915,166.24,166.18,36.68092035]
[1730817484096,36.22152915,166.21,166.18,0.4593912]
[1730817484408,14.735,166.27,166.18,0.4593912]
[1730817484409,56.59799915,166.19,166.18,0.4593912]
[1730817484804,80.37488315,166.19,166.18,0.4593912]
[1730817485378,80.37488315,166.19,166.06,4.675233]
[1730817485379,0.12549,166.18,166.06,36.68176215]
[1730817485583,36.22152915,166.13,166.07,40.43642915]
[1730817485779,36.22152915,166.16,166.1,36.22152915]
[1730817486012,4.2125,166.17,166.11,36.22152915]
[1730817486013,40.43402915,166.17,166.11,36.22152915]
[1730817486186,36.22152915,166.18,166.12,36.22152915]
[1730817486385,4.211,166.23,166.15,36.22152915]
[1730817486585,4.211,166.23,166.1,23.776884]
[1730817486890,36.22152915,166.21,166.15,36.22152915]
[1730817487393,36.22152915,166.2,166.14,36.22152915]
[1730817487600,36.22152915,166.17,166.13,10.5338]
[1730817487803,36.22152915,166.18,166.13,10.5338]